[Event "44th Chess Olympiad Open 2022"]
[Site "Chennai"]
[Date "2022.08.09"]
[Round "11.16"]
[White "Blagojevic, Dragisa"]
[Black "Haubro, Martin"]
[Result "1/2-1/2"]
[ECO "D46"]
[WhiteElo "2499"]
[BlackElo "2411"]
[Annotator "RC"]
[PlyCount "90"]
[EventDate "2022.07.29"]
[EventType "team-tourn"]
[EventCountry "IND"]
[SourceTitle "playchess.com"]
[Source "ChessBase"]
[SourceQuality "1"]
[WhiteTeam "Montenegro"]
[BlackTeam "Denmark"]
[WhiteTeamCountry "MNE"]
[BlackTeamCountry "DEN"]
[TimeControl "40/5400+30:1800+30"]

1. d4 {[%emt 0:00:22]} Nf6 {[%emt 0:00:05]} 2. Nf3 {[%emt 0:00:08]} e6 {[%emt 0:00:34]} 3. c4 {[%emt 0:00:19]} d5 {[%emt 0:00:09]} 4. Nc3 {[%emt 0:00:56]} c6 {[%emt 0:00:35]} 5. e3 {[%emt 0:00:08]} Nbd7 {[%emt 0:00:18]} 6. Qc2 {[%emt 0:00:51]} Bd6 {[%emt 0:00:30]} 7. Be2 {[%emt 0:00:12]} dxc4 {[%emt 0:03:43]} 8. Bxc4 {[%emt 0:00:12]} b5 {[%emt 0:00:04]} 9. Be2 {[%emt 0:00:13]} Bb7 {[%emt 0:01:19]} 10. O-O {[%emt 0:00:37]} O-O {[%emt 0:01:27]} 11. Rd1 {[%emt 0:00:21]} Qc7 {[%emt 0:07:43]} 12. e4 {[%emt 0:00:48]} e5 {[%emt 0:01:19]} 13. g3 {[%emt 0:00:36]} Rfd8 {[%emt 0:29:06]} 14. Bg5 {[%emt 0:18:49]} h6 {[%emt 0:06:05]} 15. dxe5 {[%emt 0:04:19]} Nxe5 {[%emt 0:00:05]} 16. Bxf6 {[%emt 0:00:17]} Nxf3+ {[%emt 0:00:06]} 17. Bxf3 {[%emt 0:00:06]} gxf6 {[%emt 0:00:19]} 18. Rac1 {[%emt 0:19:04]} Qe7 {[%emt 0:00:26]} 19. Bg4 {[%emt 0:06:33]} Be5 {[%emt 0:07:17]} 20. Bf5 {[%emt 0:05:40]} Rxd1+ {[%emt 0:05:17]} 21. Qxd1 {[%emt 0:10:36]} Rd8 {[%emt 0:04:06]} 22. Qe2 {[%emt 0:04:12]} Qc5 {[%emt 0:08:22]} 23. Rc2 {[%emt 0:02:37]} Qd4 {[%emt 0:07:11]} 24. Kg2 {[%emt 0:00:40]} Qd3 {[%emt 0:02:45]} 25. Qxd3 {[%emt 0:04:22]} Rxd3 {[%emt 0:00:04]} 26. Ne2 {[%emt 0:00:30]} c5 {[%emt 0:04:35]} 27. b3 {[%emt 0:03:18]} c4 {[%emt 0:04:08]} 28. bxc4 {[%emt 0:01:57]} bxc4 {[%emt 0:00:04]} 29. Rxc4 {[%emt 0:04:42]} Rd2 {[%emt 0:00:04]} 30. Ng1 {[%emt 0:03:03]} Rxa2 {[%emt 0:00:40]} 31. Nf3 {[%emt 0:00:07]} Bd6 {[%emt 0:02:53]} 32. Bc8 {[%emt 0:00:49]} Ba8 {[%emt 0:00:29]} 33. Bf5 {[%emt 0:01:46]} Bb7 {[%emt 0:00:08]} 34. Bc8 {[%emt 0:01:16]} Ba8 {[%emt 0:02:40]} 35. Bf5 {[%emt 0:00:43]} Kg7 {[%emt 0:01:19]} 36. Nh4 {[%emt 0:01:41]} a5 {[%emt 0:00:38]} 37. Bg4 {[%emt 0:01:09]} Bb4 {[%emt 0:00:49]} 38. Bf3 {[%emt 0:02:37]} Be1 {[%emt 0:00:27]} 39. Kf1 {[%emt 0:01:13]} Bxf2 {[%emt 0:01:04]} 40. Nf5+ {[%emt 0:01:29]} Kg6 {[%emt 0:00:27]} 41. Rc7 {[%emt 0:09:22]} Bb6 {[%emt 0:06:25]} 42. Nh4+ {[%emt 0:00:53]} Kg7 {[%emt 0:15:08]} 43. Nf5+ {[%emt 0:00:17]} Kg6 {[%emt 0:09:21]} 44. Nh4+ {[%emt 0:00:06]} Kg7 {[%emt 0:00:38]} 45. Nf5+ {[%emt 0:00:07]} Kg6 {[%emt 0:01:23]} 1/2-1/2

[Event "44th Chess Olympiad Open 2022"]
[Site "Chennai"]
[Date "2022.08.09"]
[Round "11.17"]
[White "Supi, Luis Paulo"]
[Black "Subelj, Jan"]
[Result "1-0"]
[ECO "C54"]
[WhiteElo "2603"]
[BlackElo "2498"]
[Annotator "RC"]
[PlyCount "81"]
[EventDate "2022.07.29"]
[EventType "team-tourn"]
[EventCountry "IND"]
[SourceTitle "playchess.com"]
[Source "ChessBase"]
[SourceQuality "1"]
[WhiteTeam "Brazil"]
[BlackTeam "Slovenia"]
[WhiteTeamCountry "BRA"]
[BlackTeamCountry "SLO"]
[TimeControl "40/5400+30:1800+30"]

1. e4 {[%emt 0:00:01]} e5 {[%emt 0:00:18]} 2. Nf3 {[%emt 0:00:04]} Nc6 {[%emt 0:00:21]} 3. Bc4 {[%emt 0:00:06]} Bc5 {[%emt 0:00:16]} 4. d3 {[%emt 0:01:24]} Nf6 {[%emt 0:00:29]} 5. O-O {[%emt 0:00:11]} d6 {[%emt 0:01:53]} 6. c3 {[%emt 0:00:18]} h6 {[%emt 0:00:37]} 7. Re1 {[%emt 0:01:10]} O-O {[%emt 0:00:45]} 8. h3 {[%emt 0:01:04]} a5 {[%emt 0:01:39]} 9. d4 {[%emt 0:01:32]} Ba7 {[%emt 0:01:25]} 10. Bb3 {[%emt 0:02:19]} b5 {[%emt 0:09:38]} 11. Be3 {[%emt 0:16:02]} exd4 {[%emt 0:14:45]} 12. cxd4 {[%emt 0:00:27]} a4 {[%emt 0:00:10]} 13. Bc2 {[%emt 0:00:07]} Nb4 {[%emt 0:01:03]} 14. Nbd2 {[%emt 0:07:02]} c5 {[%emt 0:10:23]} 15. Bb1 {[%emt 0:04:20]} Nd7 {[%emt 0:12:45]} 16. Nf1 {[%emt 0:05:08]} Nc6 {[%emt 0:01:26]} 17. Ng3 {[%emt 0:07:42]} cxd4 {[%emt 0:01:24]} 18. Nxd4 {[%emt 0:01:01]} Nxd4 {[%emt 0:00:12]} 19. Bxd4 {[%emt 0:00:09]} Ne5 {[%emt 0:00:38]} 20. Bxa7 {[%emt 0:04:38]} Rxa7 {[%emt 0:01:58]} 21. Bd3 {[%emt 0:00:28]} Qb6 {[%emt 0:04:43]} 22. Rc1 {[%emt 0:05:38]} Be6 {[%emt 0:01:31]} 23. a3 {[%emt 0:04:06]} b4 {[%emt 0:03:40]} 24. Bf1 {[%emt 0:01:13]} bxa3 {[%emt 0:09:15]} 25. bxa3 {[%emt 0:00:07]} Rd8 {[%emt 0:00:10]} 26. Qd2 {[%emt 0:05:36]} Rb7 {[%emt 0:03:52]} 27. Re3 {[%emt 0:05:06]} Qa7 {[%emt 0:06:00]} 28. Kh2 {[%emt 0:03:56]} Ng6 {[%emt 0:02:21]} 29. Rec3 {[%emt 0:07:38]} d5 {[%emt 0:02:44]} 30. f4 {[%emt 0:02:08]} d4 {[%emt 0:00:04]} 31. f5 {[%emt 0:02:12]} Bd7 {[%emt 0:00:35]} 32. Rc5 {[%emt 0:00:54]} Nf8 {[%emt 0:00:05]} 33. f6 {[%emt 0:02:54]} Rb6 {[%emt 0:02:51]} 34. fxg7 {[%emt 0:00:22]} Ne6 {[%emt 0:00:59]} 35. Qxh6 {[%emt 0:01:47]} Nxg7 {[%emt 0:00:02]} 36. Qh4 {[%emt 0:02:00]} Qb8 {[%emt 0:00:09]} 37. e5 {[%emt 0:02:05]} Nf5 {[%emt 0:01:48]} 38. Nxf5 {[%emt 0:04:28]} Bxf5 {[%emt 0:00:08]} 39. Qg5+ {[%emt 0:00:33]} Bg6 {[%emt 0:00:03]} 40. Rc6 {[%emt 0:01:48]} d3 {[%emt 0:01:12]} 41. Bxd3 {[%emt 0:05:37]} 1-0

[Event "44th Chess Olympiad Open 2022"]
[Site "Chennai"]
[Date "2022.08.09"]
[Round "11.17"]
[White "Borisek, Jure"]
[Black "Fier, Alexandr"]
[Result "1/2-1/2"]
[ECO "B31"]
[WhiteElo "2577"]
[BlackElo "2567"]
[Annotator "TA"]
[PlyCount "84"]
[EventDate "2022.07.29"]
[EventType "team-tourn"]
[EventCountry "IND"]
[SourceTitle "playchess.com"]
[Source "ChessBase"]
[SourceQuality "1"]
[WhiteTeam "Slovenia"]
[BlackTeam "Brazil"]
[WhiteTeamCountry "SLO"]
[BlackTeamCountry "BRA"]
[TimeControl "40/5400+30:1800+30"]

{[%evp 19,84,8,0,0,14,0,0,0,8,8,8,8,8,8,14,-6,0,0,0,-9,-6,-34,0,0,7,-21,-10,-5,-8,-61,-17,-35,0,0,0,0,8,8,8,7,8,8,8,10,10,0,0,0,0,0,0,0,0,0,0,-8,-8,-8,-8,-8,-7,-8,-8,-8,-8,-8,-8]} 1. e4 {[%emt 0:00:03]} c5 {[%emt 0:00:03]} 2. Nf3 {[%emt 0:00:12]} Nc6 {[%emt 0:00:04]} 3. Bb5 {[%emt 0:00:06]} g6 {[%emt 0:00:03]} 4. O-O {[%emt 0:00:34]} Bg7 {[%emt 0:00:03]} 5. c3 {[%emt 0:00:15]} Nf6 {[%emt 0:00:04]} 6. Re1 {[%emt 0:00:08]} a6 {[%emt 0:00:02]} 7. Bxc6 {[%emt 0:02:31]} dxc6 {[%emt 0:00:04]} 8. h3 {[%emt 0:02:27]} O-O {[%emt 0:00:06]} 9. d4 {[%emt 0:04:30]} cxd4 {[%emt 0:00:06]} 10. cxd4 {[%emt 0:00:04]} c5 {[%emt 0:00:04]} 11. d5 $1 {[%emt 0:05:57] 11.d5 scores better than 11.e5. B31: Sicilian: 2...Nc6 3 Bb5 g6.} b5 $1 {[%emt 0:00:07]} 12. Nc3 {[%emt 0:13:53]} Bb7 {[%emt 0:00:05]} 13. Bg5 {[%emt 0:02:53][%cal Bc1g5,Bg5f4,Bf4d6][%mdl 32]} h6 {[%emt 0:00:04]} 14. Bf4 {[%emt 0:00:22] [#]} e6 $146 {[%emt 0:00:35]} ({Predecessor:} 14... Nh5 15. Be5 Nf6 16. Rc1 Rc8 17. Qd2 Qd7 18. b3 Rfd8 19. Bf4 g5 20. Ne5 Qe8 {1-0 (51) Sardana,R (2461)-Matlakov,M (2685) Chess.com INT 2020}) 15. dxe6 {[%emt 0:01:50] Hoping for Qxd8.} Qxd1 {[%emt 0:00:09]} 16. Raxd1 {[%emt 0:03:04] next Bd6 is good for White.} fxe6 {[%emt 0:00:06]} 17. Bd6 {[%emt 0:09:18]} Rfc8 {[%emt 0:00:20]} 18. a3 {[%emt 0:01:07]} Nd7 {[%emt 0:07:26]} 19. Re2 {[%emt 0:05:37]} Nb6 {[%emt 0:04:36]} 20. Be5 {[%emt 0:01:21]} b4 {[%emt 0:03:53]} 21. Bxg7 {[%emt 0:02:12]} Kxg7 {[%emt 0:00:09]} 22. Nb1 {[%emt 0:01:51]} a5 {[%emt 0:01:39]} (22... Kf6 {is more complex.} 23. Rd6 Rc6 24. e5+ Ke7) 23. Ne5 {[%emt 0:00:46]} Rd8 {[%emt 0:03:00] Prevents Rd6.} 24. Rc1 {[%emt 0:00:21]} (24. Rxd8 $11 Rxd8 25. Rd2 Rxd2 26. Nxd2) 24... Rac8 {[%emt 0:00:04]} (24... Nd7 $5 {[%cal Rd7e5]} 25. Nf3 (25. Nxd7 Rxd7 26. Nd2 Ba6 $11) 25... Rac8 $11) 25. f3 {[%emt 0:04:30]} Ba6 {[%emt 0:02:36]} 26. Rd2 {[%emt 0:00:25] The position is equal.} Rxd2 {[%emt 0:37:01]} 27. Nxd2 {[%emt 0:00:05]} c4 {[%emt 0:00:02]} 28. axb4 {[%emt 0:01:02]} axb4 {[%emt 0:01:40][%cal Ba5b4,Bb4c3,Bc3c2][%mdl 32]} 29. Ra1 {[%emt 0:02:46]} c3 {[%emt 0:00:40]} 30. bxc3 {[%emt 0:00:04]} bxc3 {[%emt 0:00:03]} 31. Nb3 {[%emt 0:00:04] Pair of Knights!} Nc4 {[%emt 0:03:56]} 32. Rxa6 {[%emt 0:11:25]} Nxe5 {[%emt 0:00:06]} 33. Rxe6 $11 {[%emt 0:00:03][%mdl 4096] Endgame KRN-KRN} Nd3 {[%emt 0:01:15] [#] ...Nc5 is the strong threat.} 34. Rd6 {[%emt 0:00:39]} Nf4 {[%emt 0:00:04]} 35. Kf2 {[%emt 0:03:43]} c2 {[%emt 0:06:14]} 36. Nc1 {[%emt 0:01:52]} Ra8 {[%emt 0:00:04]} 37. Rc6 {[%emt 0:08:50]} Ra1 $1 {[%emt 0:00:30]} 38. Ke3 {[%emt 0:00:02]} Nxg2+ {[%emt 0:00:21]} 39. Kd2 $132 {[%emt 0:00:04][%mdl 2048] White is fighting back} Nf4 {[%emt 0:00:58]} 40. Rxc2 {[%emt 0:01:04]} Ra3 {[%emt 0:00:16]} 41. Rc3 {[%emt 0:33:45]} Rxc3 {[%emt 0:30:05]} 42. Kxc3 {[%emt 0:00:03]} Nxh3 {[%emt 0:00:04] Weighted Error Value: White=0.08 (flawless) /Black=0.05 (flawless)} 1/2-1/2

[Event "44th Chess Olympiad Open 2022"]
[Site "Chennai"]
[Date "2022.08.09"]
[Round "11.17"]
[White "Mekhitarian, Krikor Sevag"]
[Black "Markoja, Boris"]
[Result "1-0"]
[ECO "E14"]
[WhiteElo "2542"]
[BlackElo "2452"]
[Annotator "RC"]
[PlyCount "67"]
[EventDate "2022.07.29"]
[EventType "team-tourn"]
[EventCountry "IND"]
[SourceTitle "playchess.com"]
[Source "ChessBase"]
[SourceQuality "1"]
[WhiteTeam "Brazil"]
[BlackTeam "Slovenia"]
[WhiteTeamCountry "BRA"]
[BlackTeamCountry "SLO"]
[TimeControl "40/5400+30:1800+30"]

1. d4 {[%emt 0:00:03]} Nf6 {[%emt 0:00:11]} 2. c4 {[%emt 0:00:05]} e6 {[%emt 0:00:10]} 3. Nf3 {[%emt 0:00:05]} Bb4+ {[%emt 0:00:31]} 4. Nbd2 {[%emt 0:00:06]} b6 {[%emt 0:01:01]} 5. a3 {[%emt 0:00:20]} Bxd2+ {[%emt 0:00:21]} 6. Qxd2 {[%emt 0:00:12]} Bb7 {[%emt 0:00:12]} 7. e3 {[%emt 0:01:18]} d6 {[%emt 0:01:25]} 8. b4 {[%emt 0:00:17]} Nbd7 {[%emt 0:02:22]} 9. Bb2 {[%emt 0:00:04]} O-O {[%emt 0:03:06]} 10. Be2 {[%emt 0:00:07]} Ne4 {[%emt 0:00:53]} 11. Qc2 {[%emt 0:00:13]} f5 {[%emt 0:01:09]} 12. O-O {[%emt 0:00:34]} Rf6 {[%emt 0:01:04]} 13. d5 {[%emt 0:00:48]} Rg6 {[%emt 0:09:24]} 14. Rad1 {[%emt 0:06:20]} c5 {[%emt 0:01:03]} 15. dxe6 {[%emt 0:23:08]} Nf8 {[%emt 0:04:18]} 16. Rd5 {[%emt 0:01:24]} Bxd5 {[%emt 0:30:19]} 17. cxd5 {[%emt 0:00:07]} Rc8 {[%emt 0:00:37]} 18. Bd3 {[%emt 0:07:32]} cxb4 {[%emt 0:06:27]} 19. e7 {[%emt 0:00:32]} Qe8 {[%emt 0:01:40]} 20. exf8=Q+ {[%emt 0:02:01]} Qxf8 {[%emt 0:01:22]} 21. Qb1 {[%emt 0:05:06]} bxa3 {[%emt 0:03:46]} 22. Bxa3 {[%emt 0:00:19]} Qe7 {[%emt 0:02:35]} 23. Rc1 {[%emt 0:02:42]} Re8 {[%emt 0:00:35]} 24. Qc2 {[%emt 0:00:58]} Rf6 {[%emt 0:01:06]} 25. Nd4 {[%emt 0:06:11]} Qf7 {[%emt 0:03:19]} 26. Ne6 {[%emt 0:11:03]} Nc5 {[%emt 0:01:45]} 27. Bb2 {[%emt 0:00:47]} Nxd3 {[%emt 0:04:40]} 28. Qxd3 {[%emt 0:00:11]} Rg6 {[%emt 0:00:06]} 29. Rc7 {[%emt 0:05:53]} Re7 {[%emt 0:00:06]} 30. Rc8+ {[%emt 0:00:03]} Re8 {[%emt 0:00:06]} 31. Qc2 {[%emt 0:09:51]} Qd7 {[%emt 0:03:39]} 32. Rc7 {[%emt 0:00:09]} Qb5 {[%emt 0:00:12]} 33. Qxf5 {[%emt 0:01:29]} Kh8 {[%emt 0:01:12]} 34. Qf7 {[%emt 0:00:47]} 1-0

[Event "44th Chess Olympiad Open 2022"]
[Site "Chennai"]
[Date "2022.08.09"]
[Round "11.17"]
[White "Dobrovoljc, Vid"]
[Black "Diamant, Andre"]
[Result "0-1"]
[ECO "B30"]
[WhiteElo "2398"]
[BlackElo "2538"]
[Annotator "RC"]
[PlyCount "30"]
[EventDate "2022.07.29"]
[EventType "team-tourn"]
[EventCountry "IND"]
[SourceTitle "playchess.com"]
[Source "ChessBase"]
[SourceQuality "1"]
[WhiteTeam "Slovenia"]
[BlackTeam "Brazil"]
[WhiteTeamCountry "SLO"]
[BlackTeamCountry "BRA"]
[TimeControl "40/5400+30:1800+30"]

1. e4 {[%emt 0:00:19]} c5 {[%emt 0:00:03]} 2. Nf3 {[%emt 0:00:09]} Nc6 {[%emt 0:00:05]} 3. Bb5 {[%emt 0:01:23]} e6 {[%emt 0:00:09]} 4. O-O {[%emt 0:11:17]} Nge7 {[%emt 0:00:10]} 5. Re1 {[%emt 0:00:09]} a6 {[%emt 0:00:35]} 6. Bf1 {[%emt 0:00:05]} d5 {[%emt 0:06:23]} 7. exd5 {[%emt 0:01:18]} Nxd5 {[%emt 0:00:30]} 8. d4 {[%emt 0:00:05]} Be7 {[%emt 0:07:19]} 9. dxc5 {[%emt 0:22:57]} O-O {[%emt 0:01:37]} 10. Nbd2 {[%emt 0:08:06]} Bxc5 {[%emt 0:01:09]} 11. Ne4 {[%emt 0:01:12]} Be7 {[%emt 0:00:34]} 12. c4 {[%emt 0:05:31]} Nf6 {[%emt 0:00:50]} 13. Qc2 {[%emt 0:06:30]} Qc7 {[%emt 0:15:25]} 14. Bg5 {[%emt 0:10:11]} Ng4 {[%emt 0:01:45]} 15. h3 {[%emt 0:06:08]} Nd4 {[%emt 0:02:02]} 0-1

[Event "44th Chess Olympiad Open 2022"]
[Site "Chennai"]
[Date "2022.08.09"]
[Round "11.18"]
[White "Smirnov, Anton"]
[Black "Henriquez Villagra, Cristobal"]
[Result "0-1"]
[ECO "B62"]
[WhiteElo "2600"]
[BlackElo "2620"]
[Annotator "TA"]
[PlyCount "76"]
[EventDate "2022.07.29"]
[EventType "team-tourn"]
[EventCountry "IND"]
[SourceTitle "playchess.com"]
[Source "ChessBase"]
[SourceQuality "1"]
[WhiteTeam "Australia"]
[BlackTeam "Chile"]
[WhiteTeamCountry "AUS"]
[BlackTeamCountry "CHI"]
[TimeControl "40/5400+30:1800+30"]

{[%evp 12,76,25,22,56,34,31,37,32,27,33,34,39,38,37,35,30,38,28,47,29,33,25,0,12,13,12,24,19,42,69,-15,-11,-11,-20,-45,-34,-33,-7,-277,0,-31,-7,-6,0,-24,38,-45,-29,-94,-90,-91,-79,-68,-69,-73,-68,-345,-316,-792,-768,-29989,-29990,-29990,-29991,-29991,-29992]} 1. e4 {[%emt 0:00:03]} c5 {[%emt 0:00:43]} 2. Nf3 {[%emt 0:00:05]} d6 {[%emt 0:00:05]} 3. d4 {[%emt 0:00:04]} cxd4 {[%emt 0:00:06]} 4. Nxd4 {[%emt 0:00:03]} Nf6 {[%emt 0:00:06]} 5. Nc3 {[%emt 0:00:03]} Nc6 {[%emt 0:00:06]} 6. Bg5 {[%emt 0:00:03]} e6 {[%emt 0:00:42]} 7. Qd3 {[%emt 0:00:12]} Bd7 $1 {[%emt 0:17:01][%mdl 4] is currently scoring better than 7...a6. B62: Sicilian: Richter-Rauzer: 6...e6: Unusual White 7th moves.} 8. Ndb5 {[%emt 0:02:34]} (8. O-O-O $5 {[%cal Rd4b5]}) 8... Nb4 {[%emt 0:00:55]} 9. Qd1 {[%emt 0:00:06]} Qb8 {[%emt 0:00:08] White is slightly better.} 10. Bf4 $1 {[%emt 0:01:31][%cal Rb5d6]} e5 {[%emt 0:00:39]} 11. Bg5 {[%emt 0:00:09]} a6 {[%emt 0:00:03]} 12. Na3 {[%emt 0:00:05][%cal Bb5a3,Ba3b1,Bb1c3,Bc3e4][%mdl 32]} b5 {[%emt 0:00:04]} 13. Bxf6 {[%emt 0:00:16]} gxf6 {[%emt 0:00:05]} 14. Nab1 {[%emt 0:00:09]} Bg7 {[%emt 0:10:13]} 15. a3 {[%emt 0:00:55]} Nc6 {[%emt 0:00:05]} 16. Nd5 {[%emt 0:00:07]} f5 {[%emt 0:01:12] [#]} 17. Nbc3 $146 {[%emt 0:01:29]} ({Predecessor:} 17. exf5 Bxf5 18. Ne3 Be6 19. Bd3 d5 20. Bf5 e4 21. Bxe6 fxe6 22. Qh5+ Ke7 23. c3 {0-1 (35) Omidi,A (2315)-Darini,P (2436) Sari 2022}) 17... O-O {[%emt 0:02:04]} 18. exf5 {[%emt 0:00:53]} Bxf5 {[%emt 0:00:05]} 19. g4 {[%emt 0:00:05]} Bg6 {[%emt 0:01:38]} 20. Bg2 {[%emt 0:06:27]} Ra7 {[%emt 0:03:28]} 21. g5 {[%emt 0:10:05]} (21. h4 $14 Nd4 22. Ne3) 21... Nd4 {[%emt 0:19:13]} 22. Ne4 {[%emt 0:00:51]} Kh8 {[%emt 0:01:14]} 23. h4 {[%emt 0:23:58]} f5 {[%emt 0:14:37]} 24. gxf6 {[%emt 0:19:20]} Bh6 {[%emt 0:00:04] White must now prevent ...Qa8.} 25. f4 $2 {[%emt 0:02:18][%mdl 8192]} (25. h5 $11 Bf7 26. Nec3) 25... Raf7 $2 {[%emt 0:03:09]} (25... Qa8 $19 26. Ng5 Nxc2+ 27. Kf1 Nxa1 28. Qxa1 Qc8) 26. O-O {[%emt 0:02:46]} (26. c3 $5 {[%cal Rc3d4]} Ne6 27. fxe5 dxe5 28. Ng5 $11) 26... Qa7 {[%emt 0:03:51] aiming for ...Bxe4.} 27. Kh1 $132 {[%emt 0:01:48][%mdl 2048] White puts up resistance} (27. Nxd6 Rxf6 28. Nxf6 Rxf6 $17) 27... exf4 {[%emt 0:02:15][%cal Of4f3]} 28. c3 {[%emt 0:02:56]} (28. Nxd6 $2 Rd7 29. Nxf4 Rxd6 $19) 28... Ne6 {[%emt 0:11:57]} (28... Nf5 $11 29. Nxf4 Rxf6 30. Nxf6 Ng3+ 31. Kh2 Nxf1+ 32. Qxf1 Rxf6 33. Nxg6+ Kg7) 29. Qg4 {[%emt 0:03:17]} (29. a4 $14 b4 30. cxb4) 29... Nc7 $15 {[%emt 0:01:08]} 30. Ne7 {[%emt 0:04:04]} ({Wrong is} 30. Nxd6 $2 Nxd5 31. Bxd5 Rxf6 $19) (30. Nxf4 $11 Bxe4 31. Bxe4 Rxf6 32. Qd7 $1) 30... Bxe4 $17 {[%emt 0:00:48]} 31. Bxe4 {[%emt 0:00:03] [#] Intending Rg1 and mate.} Ne8 $1 {[%emt 0:00:07] The board is on fire.} 32. Nd5 {[%emt 0:12:34]} Nxf6 {[%emt 0:00:09]} 33. Nxf6 {[%emt 0:00:17] Hoping for Nh5.} Rxf6 {[%emt 0:00:05]} 34. Rf3 $2 {[%emt 0:00:31][%mdl 8192]} ({White should play} 34. Rae1 $15) 34... Qe7 $19 {[%emt 0:01:08]} ({Worse is} 34... Rg8 35. Qh3 $17) 35. Bd3 {[%emt 0:02:31]} (35. Bd5) 35... Rg8 {[%emt 0:00:05]} 36. Qh5 {[%emt 0:00:29]} Qg7 {[%emt 0:00:34][%csl Gg8][%cal Rg7g2] Black mates.} 37. Rf2 {[%emt 0:02:56]} f3 {[%emt 0:00:05]} ({Not} 37... Qg3 $2 38. Qf3 $19) 38. Bf5 {[%emt 0:02:25]} Be3 {[%emt 0:00:39] Weighted Error Value: White=0.66/Black=0.19 (very precise)} 0-1

[Event "44th Chess Olympiad Open 2022"]
[Site "Chennai"]
[Date "2022.08.09"]
[Round "11.18"]
[White "Cheng, Bobby"]
[Black "Salinas Herrera, Pablo"]
[Result "1-0"]
[ECO "D13"]
[WhiteElo "2540"]
[BlackElo "2526"]
[Annotator "RC"]
[PlyCount "47"]
[EventDate "2022.07.29"]
[EventType "team-tourn"]
[EventCountry "IND"]
[SourceTitle "playchess.com"]
[Source "ChessBase"]
[SourceQuality "1"]
[WhiteTeam "Australia"]
[BlackTeam "Chile"]
[WhiteTeamCountry "AUS"]
[BlackTeamCountry "CHI"]
[TimeControl "40/5400+30:1800+30"]

1. d4 {[%emt 0:00:03]} d5 {[%emt 0:00:15]} 2. c4 {[%emt 0:00:04]} c6 {[%emt 0:00:04]} 3. cxd5 {[%emt 0:02:09]} cxd5 {[%emt 0:00:05]} 4. Nc3 {[%emt 0:00:04]} Nc6 {[%emt 0:00:07]} 5. Nf3 {[%emt 0:02:47]} Nf6 {[%emt 0:00:06]} 6. Bf4 {[%emt 0:00:06]} Ne4 {[%emt 0:00:17]} 7. e3 {[%emt 0:03:00]} e6 {[%emt 0:00:04]} 8. Bd3 {[%emt 0:01:04]} g5 {[%emt 0:14:25]} 9. Bxe4 {[%emt 0:02:36]} gxf4 {[%emt 0:00:05]} 10. Bd3 {[%emt 0:00:04]} Bh6 {[%emt 0:24:41]} 11. e4 {[%emt 0:03:12]} dxe4 {[%emt 0:02:03]} 12. Bxe4 {[%emt 0:01:10]} O-O {[%emt 0:03:33]} 13. O-O {[%emt 0:00:18]} Ne7 {[%emt 0:24:24]} 14. Qc2 {[%emt 0:02:58]} Ng6 {[%emt 0:02:15]} 15. Rad1 {[%emt 0:00:04]} Bg7 {[%emt 0:06:52]} 16. Rfe1 {[%emt 0:05:06]} Qa5 {[%emt 0:00:38]} 17. d5 {[%emt 0:35:27]} Rd8 {[%emt 0:00:49]} 18. Ng5 {[%emt 0:00:11]} Bf6 {[%emt 0:02:41]} 19. Nxe6 {[%emt 0:03:15]} Rd6 {[%emt 0:04:53]} 20. Bxg6 {[%emt 0:02:21]} hxg6 {[%emt 0:00:05]} 21. Ne4 {[%emt 0:00:08]} Be5 {[%emt 0:01:38]} 22. Nxd6 {[%emt 0:11:47]} Bxd6 {[%emt 0:00:06]} 23. Qe4 {[%emt 0:00:28]} Bd7 {[%emt 0:00:20]} 24. Qd4 {[%emt 0:06:26]} 1-0